Cogmind - Beta 15 *** ADVENTURER MODE // 2025.07.27 @ 16:10:22 Player: LegoMDS Result: Destroyed by P-70 Sage with High-powered Shock Rifle Performance ------------- Evolutions (5) 2500 Regions Visited (9) 1800 Robots Destroyed (90) 450 Value Destroyed (3417) 3417 Prototype IDs (34) 680 Alien Tech Used (0) 0 Bonus (839) 839 TOTAL SCORE: 9686 Bonus ------- Follower Combat Kills 39 Entered DSFs 500 Aligned with FarCom 300 Cogmind --------- Core Integrity 0/1000 Matter 280/300 Energy 69/100 System Corruption 7% Temperature Cool (0) Movement Core (100) Ox1 Location -5/Factory Parts ------- > --- POWER (2) -------- (None) > --- PROPULSION (4) --- (None) > --- UTILITY (7) ------ Advanced Targeting Computer Target Analyzer Hardened Light Armor Plating > --- WEAPON (4) ------- (None) > --- INVENTORY (5) ---- Advanced Recoil Stabilizer Hacking Suite Skeleton Box PL-3XN's Ring of Power Peak State ------------ > --- POWER ------------ Vortex Chain Reactor > --- PROPULSION ------- Flexi-carbon Leg Flexi-carbon Leg Flexi-carbon Leg Cooled Nuclear Pulse Thruster > --- UTILITY ---------- Advanced Cooling System Advanced Targeting Computer Target Analyzer Improved Weapon Cycler Reaction Control System Improved Medium Armor Plating System Shield > --- WEAPON ----------- Heavy Laser Flak Gun Magnetic Acceleration Cannon Spear > --- INVENTORY -------- Advanced Recoil Stabilizer Energy Filter Hacking Suite Skeleton Box PL-3XN's Ring of Power [Rating: 89] Favorites ----------- Power Micro Nuclear Core Engine Light Deuterium Engine Power Core Micro Nuclear Core Reactor Vortex Chain Reactor Propulsion Flexi-carbon Leg Leg Flexi-carbon Leg Flight Unit Flight Unit Utility System Shield Device Advanced Cooling System Storage Compact Battery Processor Advanced Targeting Computer Hackware System Shield Protection Hardened Medium Armor Plating Weapon High-powered Shotgun Energy Gun Advanced Beam Rifle Ballistic Gun High-powered Shotgun Ballistic Cannon Magnetic Acceleration Cannon Launcher Grenade Launcher Piercing Weapon Spear Build | -11 -10 -10 -10 -9 -8 -7 -6 -6 -5 ------- Run | Yrd Mat Min Exi Min Mat Fac Fac DSF Fac Slots Evolved 10 | . . . . . 4 2 2 . 2 Power 1 | . . . . . . . 1 . . Propulsion 2 | . . . . . 1 1 . . . Utility 5 | . . . . . 3 . 1 . 1 Weapon 2 | . . . . . . 1 . . 1 Parts Attached 88 | 6 5 5 2 . 30 5 2 10 23 Power 15 | 1 1 1 . . 5 1 1 3 2 Engine 6 | 1 1 1 . . 3 . . . . Core 7 | . . . . . 2 1 1 2 1 Reactor 2 | . . . . . . . . 1 1 Propulsion 26 | 2 2 1 1 . 6 2 . 6 6 Treads . | . . . . . . . . . . Leg 19 | 2 . . . . 5 1 . 6 5 Wheel . | . . . . . . . . . . Hover . | . . . . . . . . . . Flight 7 | . 2 1 1 . 1 1 . . 1 Utility 27 | 1 2 . 1 . 12 1 1 . 9 Device 14 | . . . 1 . 5 1 . . 7 Storage 2 | 1 . . . . 1 . . . . Processor 3 | . . . . . 2 . 1 . . Hackware 1 | . . . . . 1 . . . . Protection 7 | . 2 . . . 3 . . . 2 Artifact . | . . . . . . . . . . Weapon 20 | 2 . 3 . . 7 1 . 1 6 Energy Gun 11 | 1 . 2 . . 4 1 . . 3 Energy Cannon . | . . . . . . . . . . Ballistic Gun 6 | 1 . . . . 3 . . 1 1 Ballistic Cannon 1 | . . . . . . . . . 1 Launcher 1 | . . 1 . . . . . . . Special Weapon . | . . . . . . . . . . Impact Weapon . | . . . . . . . . . . Slashing Weapon . | . . . . . . . . . . Piercing Weapon 1 | . . . . . . . . . 1 Special Melee Weapon . | . . . . . . . . . . Unidentified Prototypes 8 | . . . . . 4 1 . . 3 Parts Lost 33 | . . 1 . . 7 . . . 25 Power 3 | . . . . . 1 . . . 2 Propulsion 10 | . . . . . 2 . . . 8 Utility 10 | . . . . . 2 . . . 8 Weapon 10 | . . 1 . . 2 . . . 7 Highest Loss Streak 18 | . . 1 . . 3 . . . 18 To Critical Strikes 1 | . . . . . . . . . 1 Average Backups 4 | 1 5 4 5 5 4 4 3 4 4 Power . | . . . . . . . . . . Propulsion . | . 2 1 1 1 . 1 1 . . Utility 1 | . . 1 3 3 1 1 . . 1 Weapon 1 | . 2 1 . . . . 1 2 1 Tool/Special . | . . . . . . . . . . Unused Backups 14 | . 6 . . . 3 1 . . 4 Power . | . . . . . . . . . . Propulsion 5 | . 3 . . . 2 . . . . Utility 2 | . . . . . . . . . 2 Weapon 7 | . 3 . . . 1 1 . . 2 Tool/Special . | . . . . . . . . . . Average Slot Usage (%) 92 | . 92 94 100 100 83 98 98 100 94 Engine 4 | . 14 14 14 14 4 . . . . Core 4 | . . . . . 3 6 13 11 5 Reactor 1 | . . . . . . . . 1 2 Leg 17 | . 18 . . . 12 30 26 26 22 Flight 6 | . 9 28 28 28 8 . . . . Device 8 | . . . . . 13 6 6 6 11 Storage 3 | . 9 . . . 2 7 6 6 3 Processor 7 | . . . . . 6 7 11 13 11 Hackware 3 | . . . . . 3 7 6 6 4 Protection 9 | . 11 28 28 28 12 7 6 6 4 Energy Gun 10 | . 14 13 28 28 7 14 13 13 8 Ballistic Gun 7 | . 14 8 . . 9 7 6 6 5 Piercing Weapon 1 | . . . . . . . . . 3 Peak Build Rating 89 | 6 7 13 18 14 37 47 49 64 89 Average Rating 43 | 4 6 9 13 14 24 43 48 53 75 On Entrance 24 | . 6 7 13 14 14 36 44 49 64 Naked Turns . | . . . . . . . . . . Heaviest Build 71 | 13 14 13 13 13 22 27 34 39 71 Greatest Support 97 | 20 20 8 8 8 42 51 48 80 97 Greatest Overweight (x) 3 | . 1 1 1 1 3 . . . 1 Average Overweight (x) . | . . . 1 1 . . . . . Largest Inventory Capacity 8 | 8 8 5 5 5 5 5 5 5 5 Average Capacity 5 | 6 7 5 5 5 5 5 5 5 5 Most Carried 8 | 4 8 5 5 5 5 5 4 5 5 Average Carried 4 | 1 6 4 4 5 4 4 3 4 4 Final Capacity 8 | 8 5 5 5 5 5 5 5 5 5 Final Carried 5 | 2 5 5 5 5 5 5 3 5 4 Class Distribution -------------------- 41% | Hacker-Gunner 20% | Mutant 16% | Scavenger-Mutant 14% | Hacker-Mutant 8% | Hacker-Skirmisher Dominant Class ---------------- Mutant | -10/Materials Scavenger-Mutant | -10/Mines Scavenger-Mutant | -10/Exiles Scavenger-Mutant | -9/Mines Hacker-Mutant | -8/Materials Hacker-Skirmisher | -7/Factory Hacker-Gunner | -6/Factory Hacker-Gunner | -6/DSF Hacker-Gunner | -5/Factory Resources | -11 -10 -10 -10 -9 -8 -7 -6 -6 -5 ----------- Run | Yrd Mat Min Exi Min Mat Fac Fac DSF Fac Matter Collected 2116 | 192 229 82 . 30 625 . . 280 678 Remotely . | . . . . . . . . . . Salvage Created 3861 | . 413 155 . 107 1276 . . 387 1523 Parts 172 | . 20 11 . 4 73 . . 20 44 Haulers Intercepted 7 | . 2 . . . 4 . . . 1 Recyclers Shooed 2 | . . . . . 2 . . . . Parts Field Recycled . | . . . . . . . . . . Retrieved Matter . | . . . . . . . . . . Parts Self-Destructed . | . . . . . . . . . . Prevented . | . . . . . . . . . . Kills | -11 -10 -10 -10 -9 -8 -7 -6 -6 -5 ------- Run | Yrd Mat Min Exi Min Mat Fac Fac DSF Fac Combat Hostiles Destroyed 76 | . 8 4 . 2 25 . . 7 30 Melee 2 | . . . . . . . . . 2 Guns 68 | . 8 4 . 2 25 . . 7 22 Cannons 5 | . . . . . . . . . 5 Classes Destroyed 15 | . 5 3 . 1 1 . . 1 4 Worker 1 | . . . . . . . . . 1 Hauler 7 | . 2 . . . 4 . . . 1 Recycler 3 | . 1 . . . 2 . . . . Watcher 4 | . 2 . . . 1 . . . 1 Swarmer 18 | . 6 . . . 7 . . . 5 Grunt 30 | . 2 . . 1 11 . . 6 10 Brawler 5 | . . . . 1 . . . . 4 Duelist 2 | . . . . . 2 . . . . Sentry 11 | . . 2 . . 5 . . . 4 Demolisher 1 | . . 1 . . . . . . . Specialist 1 | . . . . . . . . . 1 Hunter 3 | . . . . . . . . . 3 Programmer 3 | . . . . . . . . . 3 Heavy 1 | . . . . . . . . 1 . Assembled 1 | . . 1 . . . . . . . Best Kill Streak 9 | . 4 2 . 2 5 . . 4 9 Combat Bots Only 9 | . 3 2 . 2 4 . . 4 9 Max Kills in Single Turn 2 | . 1 1 . 1 2 . . 1 2 Gunslinging 1 | . . . . . . . . . 1 Exploded . | . . . . . . . . . . Melee 1 | . . . . . . . . . 1 Uniques/NPCs Destroyed . | . . . . . . . . . . Combat | -11 -10 -10 -10 -9 -8 -7 -6 -6 -5 -------- Run | Yrd Mat Min Exi Min Mat Fac Fac DSF Fac Hostile Shots Fired 709 | . 35 13 . 7 88 . . 36 530 Missed 269 | . 11 1 . 1 28 . . 10 218 Hits 440 | . 24 12 . 6 60 . . 26 312 Melee 7 | . . . . 2 2 . . . 3 Projectile 433 | . 24 12 . 4 58 . . 26 309 AOE 8 | . . 5 . . . . . . 3 Critical Strikes 21 | . . 2 . 1 3 . . 2 13 Part Disruptions 4 | . 1 . . . . . . . 3 Actively Blocked 1 | . 1 . . . . . . . . Damage Taken 5976 | . 174 229 . 71 738 . . 458 4306 Core 1225 | . 34 71 . 14 89 . . 14 1003 Absorbed by Shields 251 | . . . . . . . . . 251 Redirected to Shielding 54 | . 9 19 . 7 19 . . . . Ignored by Resistances 1762 | . 55 64 . 20 215 . . 125 1283 Regen/Repaired (Parts) 205 | . . . . . . 20 . . 185 Core Remaining (%) 86 | 100 . . . 52 83 100 . 98 . Volleys Fired 208 | . 37 10 . 4 70 . . 12 75 Largest 4 | . 2 2 . 2 2 . . 3 4 Hottest 207 | . 60 115 . 115 115 . . 169 207 Shots Fired 456 | . 72 16 . 8 122 . . 33 205 Gun 411 | . 72 16 . 8 122 . . 33 160 Cannon 45 | . . . . . . . . . 45 Launcher . | . . . . . . . . . . Special . | . . . . . . . . . . Kinetic 221 | . 37 9 . . 75 . . 12 88 Thermal 234 | . 35 6 . 8 47 . . 21 117 Explosive . | . . . . . . . . . . Electromagnetic 1 | . . 1 . . . . . . . Robot Hit Streak 42 | . 18 34 . 42 14 . . 16 41 Robot Miss Streak 5 | . 2 . . . 2 . . 2 5 Penetration Max . | . . . . . . . . . . Secondary Targets 7 | . 2 1 . . 1 . . 1 2 Max Gunslinging Chain 1 | . 1 1 . . 1 . . 1 1 Shots Hit Robots 380 | . 57 16 . 8 91 . . 30 178 Core Hits 268 | . 22 9 . 2 58 . . 38 139 Critical Kills 1 | . . . . . . . . . 1 Critical Parts Destroyed 2 | . 1 . . . . . . . 1 Critical Strikes 17 | . 1 . . . 2 . . . 14 Burn 8 | . . . . . 2 . . . 6 Destroy 3 | . 1 . . . . . . . 2 Blast 5 | . . . . . . . . . 5 Impale 1 | . . . . . . . . . 1 Melee Attacks 7 | . . . . . . . . . 7 Impact . | . . . . . . . . . . Slashing . | . . . . . . . . . . Piercing 7 | . . . . . . . . . 7 Sneak Attacks 1 | . . . . . . . . . 1 Combat Hostiles . | . . . . . . . . . . Follow-up Attacks . | . . . . . . . . . . Damage Inflicted 8187 | . 666 200 . 127 2043 . . 707 4444 Guns 7008 | . 666 200 . 127 2043 . . 707 3265 Cannons 951 | . . . . . . . . . 951 Explosions . | . . . . . . . . . . Melee 217 | . . . . . . . . . 217 Ramming 11 | . . . . . . . . . 11 Kinetic 3988 | . 375 111 . . 1401 . . 232 1869 Thermal 3958 | . 291 76 . 127 642 . . 475 2347 Explosive . | . . . . . . . . . . Electromagnetic 13 | . . 13 . . . . . . . Impact . | . . . . . . . . . . Slashing . | . . . . . . . . . . Piercing 217 | . . . . . . . . . 217 Highest Corruption 7 | . . . . . 5 . . . 7 Average Corruption 2 | . . . . . 5 . . . 1 Corruption Purged . | . . . . . . . . . . Corruption Blocked . | . . . . . . . . . . Effects 15 | . . . . . 3 . . . 12 Message Errors 4 | . . . . . 1 . . . 3 Matter Fused 1 | . . . . . 1 . . . . Energy Discharges 4 | . . . . . . . . . 4 Parts Rejected 1 | . . . . . . . . . 1 Data Loss (minor) 4 | . . . . . 1 . . . 3 Data Loss (major) 1 | . . . . . . . . . 1 Overload Shots . | . . . . . . . . . . Overflow Damage 71 | . . . . . . . . . 71 Projectiles 28 | . . . . . . . . . 28 Explosions . | . . . . . . . . . . Melee 43 | . . . . . . . . . 43 Knockbacks 6 | . . . . . . . . . 6 Impact . | . . . . . . . . . . Kinetic 6 | . . . . . . . . . 6 Secondary . | . . . . . . . . . . Self-Inflicted Damage 3 | . . . . . . . . . 3 Shots . | . . . . . . . . . . Rammed 3 | . . . . . . . . . 3 Targets Rammed 6 | . . . . . . . . . 6 Kicked 3 | . . . . . . . . . 3 Crushed . | . . . . . . . . . . Highest Temperature 366 | . 75 85 . 276 366 . . 27 237 Average Temperature 81 | . 22 35 . 152 153 . . 13 63 Received Heat Transfer 2061 | . 33 90 . 24 405 . . 201 1308 Effects 4 | . . . . . 4 . . . . Interference 3 | . . . . . 3 . . . . Damage (minor) 1 | . . . . . 1 . . . . Siege Activations . | . . . . . . . . . . Martial Activations . | . . . . . . . . . . Shielding Activations . | . . . . . . . . . . Robots Disrupted . | . . . . . . . . . . Combat Hostiles . | . . . . . . . . . . Robots Corrupted . | . . . . . . . . . . Combat Hostiles . | . . . . . . . . . . Parts Fried . | . . . . . . . . . . Impact Corruptions . | . . . . . . . . . . Robots Melted 1 | . . . . . . . . . 1 Combat Hostiles 1 | . . . . . . . . . 1 Parts Melted 15 | . . . . . 1 . . . 14 Heat Transferred 8632 | . 675 162 . 248 1369 . . 995 5183 Parts Sabotaged . | . . . . . . . . . . Parts Stolen . | . . . . . . . . . . Parts Stripped . | . . . . . . . . . . Power Chain Reactions . | . . . . . . . . . . Alert | -11 -10 -10 -10 -9 -8 -7 -6 -6 -5 ------- Run | Yrd Mat Min Exi Min Mat Fac Fac DSF Fac Maximum Alert Level 1 | . . . . . 1 . . . 1 Low Security (%) 92 | 100 100 100 . 100 97 100 100 100 84 Level 1 7 | . . . . . 2 . . . 15 Level 2 . | . . . . . . . . . . Level 3 . | . . . . . . . . . . Level 4 . | . . . . . . . . . . Level 5 . | . . . . . . . . . . High Security . | . . . . . . . . . . Max Security . | . . . . . . . . . . Peak Influence 340 | . 70 51 . 50 206 84 . 160 340 Initial 72 | . . 13 . . 13 68 . . 72 Average 71 | . 23 26 . 33 94 22 . 76 87 Influence Increases 2105 | . 227 91 . 50 729 19 . 160 829 Destroy 0b10 Robot/C 1520 | . 160 80 . 40 500 . . 140 600 Destroy 0b10 Robot/NC 75 | . 25 . . . 35 . . . 15 Destroy Leader 322 | . 38 10 . 10 120 . . 20 124 Allied During Kill 7 | . . 1 . . . . . . 6 Successful Hack 66 | . 4 . . . 16 19 . . 27 Disable Machine 18 | . . . . . 9 . . . 9 Destroy Structure 22 | . . . . . 4 . . . 18 Partial Spotted 15 | . . . . . 15 . . . . Lose Combat Pursuer 60 | . . . . . 30 . . . 30 Influence Decreases 2015 | . 186 121 11 10 593 195 . . 899 Entered New Map 262 | . . 28 11 . 27 108 . . 88 Time Decay 1435 | . 186 70 . 10 511 87 . . 571 Lost Part 298 | . . 3 . . 55 . . . 240 Lost Ally 20 | . . 20 . . . . . . . Squads Dispatched 11 | . . . . . 1 . . 1 9 Investigation 3 | . . . . . . . . . 3 Extermination 4 | . . . . . . . . . 4 Reinforcement 4 | . . . . . 1 . . 1 2 Assault . | . . . . . . . . . . Garrison . | . . . . . . . . . . Intercept . | . . . . . . . . . . Searches Triggered . | . . . . . . . . . . Construction Impeded 1 | . . . . . . . . . 1 Haulers Reinforced . | . . . . . . . . . . Active Scanning Responses . | . . . . . . . . . . Cargo Convoy Interrupts 1 | . . . . . . . . . 1 Stealth | -11 -10 -10 -10 -9 -8 -7 -6 -6 -5 --------- Run | Yrd Mat Min Exi Min Mat Fac Fac DSF Fac Distress Signals 5 | . . . . . 3 . . . 2 Communications Jammed . | . . . . . . . . . . Distress Signals . | . . . . . . . . . . Times Spotted 110 | . 13 4 . 2 36 . . 7 48 Peak Tracking Total 7 | . 3 2 . 2 6 . . 4 7 Tactical Retreats 4 | . . . . . 2 . . . 2 Traps | -11 -10 -10 -10 -9 -8 -7 -6 -6 -5 ------- Run | Yrd Mat Min Exi Min Mat Fac Fac DSF Fac Traps Triggered 2 | . 1 . . . . . 1 . . Indirectly . | . . . . . . . . . . Trap Hack Attempts . | . . . . . . . . . . Triggered . | . . . . . . . . . . Disarmed . | . . . . . . . . . . Reprogrammed . | . . . . . . . . . . Reused . | . . . . . . . . . . Traps Extracted . | . . . . . . . . . . Installed . | . . . . . . . . . . Triggered . | . . . . . . . . . . Machines | -11 -10 -10 -10 -9 -8 -7 -6 -6 -5 ---------- Run | Yrd Mat Min Exi Min Mat Fac Fac DSF Fac Machines Disabled 2 | . . . . . 1 . . . 1 Max in Single Turn 1 | . . . . . 1 . . . 1 Garrison Access 1 | . . . . . 1 . . . . Machines Repaired . | . . . . . . . . . . Machines Dismantled . | . . . . . . . . . . Machines Sabotaged . | . . . . . . . . . . Overloaded Fab Kills . | . . . . . . . . . . Hacking | -11 -10 -10 -10 -9 -8 -7 -6 -6 -5 --------- Run | Yrd Mat Min Exi Min Mat Fac Fac DSF Fac Machines Accessed 29 | . 5 . 2 . 8 3 1 . 10 Terminals 17 | . 5 . . . 6 1 1 . 4 Fabricators 2 | . . . . . . . . . 2 Repair Stations 5 | . . . . . . 2 . . 3 Recycling Units . | . . . . . . . . . . Scanalyzers 2 | . . . . . 1 . . . 1 Garrison Access 1 | . . . . . 1 . . . . Total Hacks 75 | . 12 . 5 . 22 6 1 . 29 Successful 45 | . 4 . 5 . 16 3 1 . 16 Failed 30 | . 8 . . . 6 3 . . 13 Catastrophic 4 | . 1 . . . . . . . 3 Database Lockouts . | . . . . . . . . . . Manual 1 | . . . 1 . . . . . . Terminals 36 | . 12 . . . 14 3 1 . 6 Fabricators 4 | . . . . . . . . . 4 Repair Stations 12 | . . . . . . 3 . . 9 Recycling Units . | . . . . . . . . . . Scanalyzers 16 | . . . . . 6 . . . 10 Garrison Access 2 | . . . . . 2 . . . . Terminal Hacks 22 | . 4 . 5 . 9 1 1 . 2 Record 5 | . . . 4 . . . . . 1 Part Schematic 1 | . . . . . . 1 . . . Robot Analysis 1 | . . . . . . . . . 1 Prototype ID Bank 2 | . 1 . . . 1 . . . . Open DSF 1 | . . . . . . . 1 . . Branch Access Points 1 | . . . . . 1 . . . . Transport Status 1 | . . . . . 1 . . . . Hauler Manifests 7 | . 2 . . . 5 . . . . Zone Layout 2 | . 1 . . . 1 . . . . Proto ID Catalog 1 | . . . 1 . . . . . . Fabricator Hacks 1 | . . . . . . . . . 1 Build 1 | . . . . . . . . . 1 Repair Station Hacks 7 | . . . . . . 2 . . 5 Scan Component 4 | . . . . . . 1 . . 3 Repair 3 | . . . . . . 1 . . 2 Recycling Unit Hacks . | . . . . . . . . . . Scanalyzer 14 | . . . . . 6 . . . 8 Insert Component 7 | . . . . . 3 . . . 4 Analyze 7 | . . . . . 3 . . . 4 Garrison Access Hacks 1 | . . . . . 1 . . . . Seal Access 1 | . . . . . 1 . . . . Unauthorized Hacks . | . . . . . . . . . . Terminals . | . . . . . . . . . . Fabricators . | . . . . . . . . . . Repair Stations . | . . . . . . . . . . Recycling Units . | . . . . . . . . . . Scanalyzers . | . . . . . . . . . . Garrison Access . | . . . . . . . . . . Data Cores Recovered . | . . . . . . . . . . Used . | . . . . . . . . . . Hacking Detections 16 | . 3 . . . 5 2 . . 6 Full Trace Events 4 | . 1 . . . . . . . 3 Feedback Events . | . . . . . . . . . . Feedback Blocked . | . . . . . . . . . . Robot Schematics Acquired . | . . . . . . . . . . Robots Built 3 | . . . . . . . . . 3 Authchips . | . . . . . . . . . . Time 169 | . . . . . . . . . 169 Total Robot Build Rating 18 | . . . . . . . . . 18 Part Schematics Acquired 8 | . . . . . 3 1 . . 4 Parts Built . | . . . . . . . . . . Authchips . | . . . . . . . . . . Time . | . . . . . . . . . . Total Part Build Rating . | . . . . . . . . . . Parts Repaired 2 | . . . . . . 1 . . 1 Time 126 | . . . . . . 50 . . 76 Parts Recycled . | . . . . . . . . . . Recycled Matter . | . . . . . . . . . . Retrieved Matter . | . . . . . . . . . . Retrieved Components . | . . . . . . . . . . Parts Scanalyzed 7 | . . . . . 3 . . . 4 Part Schematics Acquired 7 | . . . . . 3 . . . 4 Parts Damaged 1 | . . . . . . . . . 1 Bothacking | -11 -10 -10 -10 -9 -8 -7 -6 -6 -5 ------------ Run | Yrd Mat Min Exi Min Mat Fac Fac DSF Fac Used RIF Installer . | . . . . . . . . . . Robots Hacked . | . . . . . . . . . . Non-combat . | . . . . . . . . . . Combat . | . . . . . . . . . . Robot Hacks Applied . | . . . . . . . . . . Relay Couplers Released . | . . . . . . . . . . Fabnet Peak Effective % . | . . . . . . . . . . Robots Rewired . | . . . . . . . . . . Allies Hacked . | . . . . . . . . . . Hacks Repelled . | . . . . . . . . . . Allies | -11 -10 -10 -10 -9 -8 -7 -6 -6 -5 -------- Run | Yrd Mat Min Exi Min Mat Fac Fac DSF Fac Total Allies 5 | . . 2 . . . . . . 3 Largest Group 3 | . . 2 . . . . . . 3 Highest-Rated Group 90 | . . 49 . . . . . . 90 Highest-Rated Ally 31 | . . 31 . . . . . . 30 Total Orders . | . . . . . . . . . . Ally Attacks 6 | . . 5 . . . . . . 1 Total Damage 72 | . . 56 . . . . . . 16 Kills 1 | . . 1 . . . . . . . Allies Corrupted 1 | . . . . . . . . . 1 Allies Melted . | . . . . . . . . . . Intel | -11 -10 -10 -10 -9 -8 -7 -6 -6 -5 ------- Run | Yrd Mat Min Exi Min Mat Fac Fac DSF Fac Active Infowar (turns) 245 | . . . . . 245 . . . . ECM 245 | . . . . . 245 . . . . Robot Analysis Total 1 | . . . . . . . . . 1 Derelict Logs Recovered . | . . . . . . . . . . Drone Launches . | . . . . . . . . . . Drone Recoveries . | . . . . . . . . . . Exploration | -11 -10 -10 -10 -9 -8 -7 -6 -6 -5 ------------- Run | Yrd Mat Min Exi Min Mat Fac Fac DSF Fac Turns Passed 4455 | 49 518 148 251 27 1118 353 33 190 1768 Spaces Moved 3070 | 36 488 128 210 13 712 290 33 138 1022 Core 37 | 11 . . . . . . . . 26 Treads . | . . . . . . . . . . Legs 2021 | 25 215 . . . 324 290 33 138 996 Wheels . | . . . . . . . . . . Hover . | . . . . . . . . . . Flight 1012 | . 273 128 210 13 388 . . . . Fastest Speed 34 | 50 37 37 117 117 34 90 90 90 50 Average Speed 100 | 98 73 81 117 117 92 95 90 95 119 Slowest Speed 280 | 120 120 117 117 117 280 97 90 120 190 Overloaded Moves . | . . . . . . . . . . Propulsion Burnouts . | . . . . . . . . . . Robots Hopped 10 | . 5 . . . 5 . . . . Potential Cave-ins . | . . . . . . . . . . Cave-ins Triggered . | . . . . . . . . . . Exploration Rate (%) 37 | 3 88 25 60 9 69 7 1 88 29 Regions Visited 9 Branch Regions 3 Pre-discovered Areas 1 | . . . 1 . . . . . . Known Exits Taken 1 | . . . . . . . 1 . . Unknown Exits Taken 7 | 1 1 1 1 1 1 1 . . . Scrap Searched 1 | . . 1 . . . . . . . Spaces Dug 1 | . . . . . . . . . 1 Terrain Destroyed 7 | . . . . . . . . . 7 Melee 1 | . . . . . . . . . 1 Projectile 6 | . . . . . . . . . 6 AOE . | . . . . . . . . . . Terrain Rammed . | . . . . . . . . . . Walls Destroyed . | . . . . . . . . . . Machines Disabled . | . . . . . . . . . . Actions | -11 -10 -10 -10 -9 -8 -7 -6 -6 -5 --------- Run | Yrd Mat Min Exi Min Mat Fac Fac DSF Fac Total 4035 | 49 575 156 214 16 1042 368 36 172 1407 Wait 526 | . 27 7 . . 196 59 . . 237 Move 3041 | 35 477 127 209 12 701 289 32 137 1022 Hop 10 | . 5 . . . 5 . . . . Pick Up 65 | 8 13 3 1 . 16 6 1 3 14 Fast Attach 33 | . 2 . . . 14 2 . 1 14 Attach 37 | 6 2 2 . . 12 2 3 . 10 Detach 1 | . . . . . . . . . 1 Swap 37 | . 1 4 3 . 9 4 . 10 6 Drop 64 | . 11 3 1 . 19 6 . 9 15 Fire 208 | . 37 10 . 4 70 . . 12 75 Melee 7 | . . . . . . . . . 7 Ram 3 | . . . . . . . . . 3 Kick 3 | . . . . . . . . . 3 Crush . | . . . . . . . . . . Escape Stasis . | . . . . . . . . . . Rewire . | . . . . . . . . . . Trap . | . . . . . . . . . . Miscellaneous . | . . . . . . . . . . Route ------- -11/Scrapyard -10/Materials (discovered 4 exits: [*Mat x2] / [*Min x2]) -10/Mines (discovered 2 exits: [*Mat] / *Exi) -10/Exiles -9/Mines -8/Materials (discovered 4 exits: *Fac x2 / *Sto x2) -7/Factory -6/Factory -6/DSF -5/Factory (discovered 1 exit: [*Fac]) History --------- Turn | Location | Event 6 | -11/Scrapyard | Discovered new exit (range 14) 50 | -11/Scrapyard | Entered Materials 314 | -10/Materials | Build established: Mutant 440 | -10/Materials | Discovered new exit (range 9) 463 | -10/Materials | Discovered new exit (range 16) 486 | -10/Materials | Discovered new exit (range 15) 523 | -10/Materials | Discovered new exit (range 16) 568 | -10/Materials | Entered Mines 582 | -10/Mines | Assembled infested the area 619 | -10/Mines | Discovered new exit (range 11) 711 | -10/Mines | Deemed a non-threat by the Exiles lab entrance 711 | -10/Mines | Discovered new exit (range 5) 716 | -10/Mines | Entered Exiles 746 | -10/Exiles | Met 8R-AWN 762 | -10/Exiles | Met EX-HEX 797 | -10/Exiles | Met EX-BIN 811 | -10/Exiles | Aligned with FarCom system 812 | -10/Exiles | Given EX-Vault access code 839 | -10/Exiles | Opened EX-Vault 850 | -10/Exiles | Found Skeleton Box 877 | -10/Exiles | Warned to stay clear of 0b10 Research branches 912 | -10/Exiles | Met EX-DEC 919 | -10/Exiles | Learned location of Zion (-6) 930 | -10/Exiles | Build established: Scavenger-Mutant 953 | -10/Exiles | Discovered new exit (range 14) 967 | -10/Exiles | Left Exiles lab with Skeleton Box 967 | -10/Exiles | Entered Mines 981 | -9/Mines | Discovered new exit (range 11) 994 | -9/Mines | Entered Materials 994 | -8/Materials | Evolved 4 slots: Propulsion x1, Utility x3 1095 | -8/Materials | Discovered new exit (range 16) 1227 | -8/Materials | Lost 3 parts (2n1u) 1490 | -8/Materials | Identified exit to Storage 1738 | -8/Materials | Discovered new exit (range 15) 1896 | -8/Materials | Build established: Hacker-Mutant 2054 | -8/Materials | Discovered new exit (range 13) 2112 | -8/Materials | Entered Factory 2112 | -7/Factory | Evolved 2 slots: Propulsion x1, Weapon x1 2266 | -7/Factory | Repaired Adv. Heat Sink 2407 | -7/Factory | Build established: Hacker-Skirmisher 2415 | -7/Factory | Discovered new exit (range 7) 2465 | -7/Factory | Entered another Factory area 2465 | -6/Factory | Evolved 2 slots: Power x1, Utility x1 2498 | -6/Factory | Identified exit to DSF 2498 | -6/Factory | Entered DSF 2530 | -6/DSF | Additional patrols routed to DSF 2591 | -6/DSF | Discovered new exit (range 16) 2688 | -6/DSF | Entered Factory 2688 | -5/Factory | Evolved 2 slots: Utility x1, Weapon x1 2775 | -5/Factory | Build established: Hacker-Gunner 3042 | -5/Factory | Fabricated B-60 Warrior (x3) 3204 | -5/Factory | Repaired Hrd. Medium Armor Plating 3708 | -5/Factory | Cargo convoy interrupted 3873 | -5/Factory | Found PL-3XN's Ring of Power 3881 | -5/Factory | Found Prototype Reactor 3881 | -5/Factory | Identified Vortex Chain Reactor 4174 | -5/Factory | Destroyed 9 combat bots 4370 | -5/Factory | Discovered new exit (range 15) 4397 | -5/Factory | Core integrity fell below 50% 4430 | -5/Factory | Core integrity fell below 20% 4456 | -5/Factory | Destroyed by P-70 Sage with High-powered Shock Rifle Last Messages --------------- Thunder Leg destroyed. Penetrated by Slug. Thunder Leg destroyed. Y-64 Sentinel destroyed. K-01 Serf collects debris. Acquired KE Penetrator. P-70 Sage resets X-77 Beamer, system corruption cleaned. K-01 Serf collects debris. System Shield destroyed. Acquired 5 matter. K-01 Serf collects debris. Neutrino Reactor explodes. Acquired Hrd. Light Armor Plating. Slug penetrates P-70 Sage. P-70 Sage suffers critical hit (Destroy). Destroyed Tesla Rifle. KE Penetrator destroyed. Slammed into P-70 Sage. Slammed into X-77 Beamer. Map ----- +----------------------------------------------------+ | ?????????????????????????????????????????????????? | | ?????????????????????????????????????????????????? | | ?????????????????????????????????????????????????? | | ?????????????????????????????????????????????????? | | ?????????????????????????????????????????????????? | | ?????????????????????????????????????????????????? | | ?????????????????????????????????????????????????? | | ?????????????????????????????????????????????????? | | ?????????????????????????????????????????????????? | | ?????????????????????????????????????????????????? | | ?????????????????????????????????????????????????? | | ?????????????????????????????????????????????????? | | ?????????????????????????????????????????????????? | | ?????????????????????????????????????+#??????????? | | ???????????????????????????????????? ????????? | | ??????????????????????????????????? ??????? | | ??????????????????????????????????? ??????? | | ????????????????###########???????? ?????? | | ????????????????? #??????? H?????? | | ????????????????? # ?????? ???????? | | ???????????????? ? # ###### ????????? | | ???????????????""" """ # #?????????? | | ???????????????""" """ # #?????????? | | ?????????????# """ """ + ???????????? | | ?????????????# "" "" # ?????????????? | | ?????????????# "" "" @#?? ???????????????? | | ?????????????# #???# #????????????????? | | ?????????????# #???# #????????????????? | | ?????????????# #?### ###????###???????? | | ?????????????# p x #?# ################ | | ?????????????##########x#####h | | ????????? + p | | ????????? ######/#####% | | ????????????????????# ## ################ | | ????????????????????# ### ##??? ##! | | ????????????????????# """ #?# ##### ## | | ????????????w???????# """ #?# ## ! | | ????????????????????# """ #?# ## | | ????????????????????# ###% != """ ## | | ????????????????????######### ! """ ??# ! | | ????????????????????????????# """ ## | | ????????????????????????????# = ## | | ????????????????????????????# ##### | | ???????????????????########## | | ???????????????????# # | | ???????????????????# # ### ? | | ???????????????????# "" # #??#####+###? | | ???????????????????# "" + #???????????? | | ???????????????????# """ # #???????????? | | ???????????????????# """ # #???????????? | +----------------------------------------------------+ Best States ------------- Heat Dissipation 71 Energy Generation 55 Energy Capacity 700 Matter Stores 300 Matter Capacity 300 Sight Range 16 Terrain Scan Density 10 ECM Strength 1 Additional Mass Support 6 Armor Coverage 450 Resistance: KI 20 Resistance: TH 20 Resistance: EX 20 Resistance: EM 20 Resistance: I 20 Resistance: S 20 Resistance: P 20 Core Shielding 20 Propulsion Shielding 33 Weapon Cycling 20 Evasion (%) 63 Targeting Accuracy 8 Target Analysis 5 Recoil Reduction 6 Energy Filtering 30 Offensive Hacking 10 Defensive Hacking 10 Item Schematics ----------------- Adv. Beam Rifle | -8/Materials | Scanalyzed VSS Leg | -8/Materials | Scanalyzed Hpw. Shotgun | -8/Materials | Scanalyzed Antigrav System | -7/Factory | Hacked Hacking Suite | -5/Factory | Scanalyzed Flexi-carbon Leg | -5/Factory | Scanalyzed Hvy. Missile Launcher | -5/Factory | Scanalyzed Enh. Gauss Cannon | -5/Factory | Scanalyzed Robot Schematics ------------------ None Fabricated ------------ B-60 Warrior | x3 | -5/Factory | Preloaded Repaired ---------- Adv. Heat Sink | 60% | -7/Factory Hrd. Medium Armor Plating | 22% | -5/Factory Alien Tech Used ----------------- None Achievements -------------- None Challenges ------------ None Game ------ Seed AutogunFactoryDetector Manual? 0 Play Time 00:46:46 Cumulative 84.0 hours Start 2025.07.26 @ 09:50:19 End 2025.07.27 @ 16:10:22 Sessions 4 Manual Loads 0 Difficulty Adventurer Special Mode None Game No. 108 Rogue 13 Adventurer 95 Explorer 0 Win Type - Total 0 Types 0/0/0/0/0/0/0/0/0/0 Lore% 63 Gallery% 58 Achievement% 46 Wizard Run 0 Options --------- Layout 1 ASCII 0 Keyboard 0 Movement Mouse Keybinds 0 Fullscreen 1 Font 32/SmallcapsGlow Map View 50x35 Zoom Use 0% Tactical HUD 0 Map Filters NONE Filters NONE Steam 1 RUN: 198f4808-5b41-41bd-8153-774ede9317a6